[Event "Swedish Chess Championship 2019: Veteran-SM 65+"]
[Site "Stiga Sports Arena, Arenatorget 1, Eskilstuna, Sweden"]
[Date "2019.07.07"]
[Round "2.2"]
[White "Moborn, Anders"]
[Black "Gajic, Zoran"]
[Result "1-0"]
[TimeControl "90 minutes for 40 moves + 30 minutes for the rest of the game + 30 seconds per move from move one"]
[WhiteFideId "1706349"]
[BlackFideId "1718304"]
[WhiteElo "2034"]
[BlackElo "1936"]

1. d4 {[%clk 01:30:57]} {[%emt 00:00:01]} d6 {[%clk 01:30:52]} {[%emt
00:00:09]} 2. c4 {[%clk 01:29:36]} {[%emt 00:01:52]} Nf6 {[%clk 01:30:58]}
{[%emt 00:00:24]} 3. Nc3 {[%clk 01:29:54]} {[%emt 00:00:11]} g6 {[%clk
01:31:02]} {[%emt 00:00:26]} 4. e4 {[%clk 01:30:00]} {[%emt 00:00:23]} Bg7
{[%clk 01:31:25]} {[%emt 00:00:08]} 5. Nf3 {[%clk 01:30:20]} {[%emt 00:00:10]}
O-O {[%clk 01:31:34]} {[%emt 00:00:21]} 6. Be2 {[%clk 01:30:35]} {[%emt
00:00:15]} c5 {[%clk 01:31:00]} {[%emt 00:01:04]} 7. h3 {[%clk 01:23:58]}
{[%emt 00:07:07]} Na6 {[%clk 01:27:49]} {[%emt 00:03:41]} 8. d5 {[%clk
01:22:36]} {[%emt 00:01:52]} e6 {[%clk 01:26:29]} {[%emt 00:01:50]} 9. O-O
{[%clk 01:20:11]} {[%emt 00:02:54]} exd5 {[%clk 01:26:46]} {[%emt 00:00:14]} 10.
cxd5 {[%clk 01:20:14]} {[%emt 00:00:27]} Re8 {[%clk 01:27:05]} {[%emt
00:00:10]} 11. Nd2 {[%clk 01:17:27]} {[%emt 00:03:17]} Nc7 {[%clk 01:25:38]}
{[%emt 00:01:57]} 12. a4 {[%clk 01:16:08]} {[%emt 00:01:49]} Rb8 {[%clk
01:23:55]} {[%emt 00:02:12]} 13. Bd3 {[%clk 01:05:30]} {[%emt 00:11:08]} a6
{[%clk 01:20:21]} {[%emt 00:04:05]} 14. a5 {[%clk 01:05:34]} {[%emt 00:00:26]}
Bd7 {[%clk 01:20:37]} {[%emt 00:00:44]} 15. Nc4 {[%clk 00:49:41]} {[%emt
00:16:53]} Bb5 {[%clk 01:20:54]} {[%emt 00:00:13]} 16. Nb6 {[%clk 00:47:11]}
{[%emt 00:03:00]} c4 {[%clk 01:17:43]} {[%emt 00:03:41]} 17. Bc2 {[%clk
00:45:33]} {[%emt 00:02:08]} Na8 {[%clk 01:18:01]} {[%emt 00:00:12]} 18. Be3
{[%clk 00:42:47]} {[%emt 00:03:15]} Nxb6 {[%clk 01:13:02]} {[%emt 00:05:31]} 19.
Bxb6 {[%clk 00:42:59]} {[%emt 00:00:18]} Qe7 {[%clk 01:13:08]} {[%emt
00:00:22]} 20. Bd4 {[%clk 00:34:55]} {[%emt 00:08:35]} Nd7 {[%clk 01:05:02]}
{[%emt 00:08:36]} 21. Bxg7 {[%clk 00:33:56]} {[%emt 00:01:29]} Kxg7 {[%clk
01:05:27]} {[%emt 00:00:05]} 22. Qd4+ {[%clk 00:29:31]} {[%emt 00:04:55]} Qe5
{[%clk 01:01:10]} {[%emt 00:04:46]} 23. Rfd1 {[%clk 00:28:33]} {[%emt
00:01:28]} Qxd4 {[%clk 00:54:27]} {[%emt 00:07:13]} 24. Rxd4 {[%clk 00:28:58]}
{[%emt 00:00:06]} Nc5 {[%clk 00:54:36]} {[%emt 00:00:19]} 25. Nd1 {[%clk
00:20:58]} {[%emt 00:08:31]} Rbc8 {[%clk 00:41:50]} {[%emt 00:13:15]} 26. Ne3
{[%clk 00:20:35]} {[%emt 00:00:54]} Nd7 {[%clk 00:31:37]} {[%emt 00:10:44]} 27.
Ba4 {[%clk 00:18:30]} {[%emt 00:02:36]} Bxa4 {[%clk 00:28:38]} {[%emt
00:03:28]} 28. Rxa4 {[%clk 00:18:05]} {[%emt 00:00:55]} c3 {[%clk 00:29:00]}
{[%emt 00:00:08]} 29. bxc3 {[%clk 00:16:29]} {[%emt 00:02:06]} Rxc3 {[%clk
00:29:24]} {[%emt 00:00:06]} 30. Rac4 {[%clk 00:16:26]} {[%emt 00:00:32]} Ra3
{[%clk 00:28:24]} {[%emt 00:01:30]} 31. Rc7 {[%clk 00:14:23]} {[%emt 00:02:33]}
Nc5 {[%clk 00:28:26]} {[%emt 00:00:29]} 32. Nc4 {[%clk 00:13:23]} {[%emt
00:01:31]} Ra1+ {[%clk 00:28:33]} {[%emt 00:00:23]} 33. Kh2 {[%clk 00:13:38]}
{[%emt 00:00:15]} Rxe4 {[%clk 00:19:48]} {[%emt 00:09:15]} 34. Rxe4 {[%clk
00:13:57]} {[%emt 00:00:12]} Nxe4 {[%clk 00:20:12]} {[%emt 00:00:05]} 35. f3
{[%clk 00:13:27]} {[%emt 00:00:59]} Nf6 {[%clk 00:20:02]} {[%emt 00:00:40]} 36.
Nxd6 {[%clk 00:12:40]} {[%emt 00:01:17]} Nxd5 {[%clk 00:20:07]} {[%emt
00:00:25]} 37. Rxf7+ {[%clk 00:11:11]} {[%emt 00:01:58]} Kg8 {[%clk 00:20:26]}
{[%emt 00:00:12]} 38. Rxb7 {[%clk 00:11:35]} {[%emt 00:00:07]} Rxa5 {[%clk
00:20:44]} {[%emt 00:00:12]} 39. g4 {[%clk 00:10:09]} {[%emt 00:01:56]} Ra3
{[%clk 00:13:07]} {[%emt 00:08:06]} 40. Kg3 {[%clk 00:10:30]} {[%emt 00:00:09]}
g5 {[%clk 00:11:45]} {[%emt 00:01:49]} 41. Nf7 {[%clk 00:06:36]} {[%emt
00:04:27]} a5 {[%clk 00:02:40]} {[%emt 00:09:36]} 42. Nxg5 {[%clk 00:05:55]}
{[%emt 00:01:10]} h6 {[%clk 00:02:54]} {[%emt 00:00:16]} 43. Ne6 {[%clk
00:04:06]} {[%emt 00:02:18]} a4 {[%clk 00:24:16]} {[%emt 00:09:09]} 44. h4
{[%clk 00:30:04]} {[%emt 00:04:32]} Rb3 {[%clk 00:24:31]} {[%emt 00:00:14]} 45.
Rg7+ {[%clk 00:29:56]} {[%emt 00:00:36]} Kh8 {[%clk 00:24:51]} {[%emt
00:00:12]} 46. Ra7 {[%clk 00:30:15]} {[%emt 00:00:10]} a3 {[%clk 00:18:29]}
{[%emt 00:06:53]} 47. Nd4 {[%clk 00:25:27]} {[%emt 00:05:18]} 1-0

[Event "Swedish Chess Championship 2019: Veteran-SM 65+"]
[Site "Stiga Sports Arena, Arenatorget 1, Eskilstuna, Sweden"]
[Date "2019.07.07"]
[Round "2.3"]
[White "Wedin, Svante"]
[Black "Svensson, Hakan"]
[Result "1-0"]
[TimeControl "90 minutes for 40 moves + 30 minutes for the rest of the game + 30 seconds per move from move one"]
[WhiteFideId "1711989"]
[BlackFideId "1714201"]
[WhiteElo "2003"]
[BlackElo "2056"]

1. e4 {[%clk 01:30:57]} {[%emt 00:00:03]} e6 {[%clk 01:30:37]} {[%emt
00:00:23]} 2. d4 {[%clk 01:31:19]} {[%emt 00:00:08]} d5 {[%clk 01:31:03]}
{[%emt 00:00:04]} 3. Nd2 {[%clk 01:30:51]} {[%emt 00:00:58]} c5 {[%clk
01:31:01]} {[%emt 00:00:31]} 4. exd5 {[%clk 01:31:10]} {[%emt 00:00:12]} Qxd5
{[%clk 01:31:16]} {[%emt 00:00:14]} 5. Ngf3 {[%clk 01:31:14]} {[%emt 00:00:27]}
cxd4 {[%clk 01:31:35]} {[%emt 00:00:11]} 6. Bc4 {[%clk 01:31:40]} {[%emt
00:00:05]} Qd6 {[%clk 01:31:57]} {[%emt 00:00:08]} 7. O-O {[%clk 01:31:58]}
{[%emt 00:00:11]} Nf6 {[%clk 01:32:20]} {[%emt 00:00:06]} 8. Nb3 {[%clk
01:30:42]} {[%emt 00:01:47]} Nc6 {[%clk 01:32:42]} {[%emt 00:00:09]} 9. Nbxd4
{[%clk 01:30:55]} {[%emt 00:00:17]} Nxd4 {[%clk 01:33:01]} {[%emt 00:00:10]} 10.
Nxd4 {[%clk 01:29:47]} {[%emt 00:01:39]} a6 {[%clk 01:32:45]} {[%emt 00:00:46]}
11. Re1 {[%clk 01:29:47]} {[%emt 00:00:29]} Qc7 {[%clk 01:32:30]} {[%emt
00:00:45]} 12. Bf1 {[%clk 01:29:31]} {[%emt 00:00:46]} Bd7 {[%clk 01:29:30]}
{[%emt 00:03:30]} 13. Qf3 {[%clk 01:20:07]} {[%emt 00:09:53]} Be7 {[%clk
01:17:42]} {[%emt 00:12:14]} 14. Bf4 {[%clk 01:15:03]} {[%emt 00:05:37]} Qb6
{[%clk 01:15:41]} {[%emt 00:02:31]} 15. Be5 {[%clk 01:13:55]} {[%emt 00:01:39]}
Rc8 {[%clk 01:03:14]} {[%emt 00:12:56]} 16. c4 {[%clk 01:06:52]} {[%emt
00:07:34]} Bc6 {[%clk 00:38:07]} {[%emt 00:25:37]} 17. Qh3 {[%clk 01:01:03]}
{[%emt 00:06:19]} Bc5 {[%clk 00:16:34]} {[%emt 00:22:03]} 18. Rad1 {[%clk
00:49:01]} {[%emt 00:12:32]} Rd8 {[%clk 00:05:20]} {[%emt 00:11:44]} 19. Nxe6
{[%clk 00:28:42]} {[%emt 00:20:50]} Bxf2+ {[%clk 00:05:14]} {[%emt 00:00:36]}
20. Kh1 {[%clk 00:29:02]} {[%emt 00:00:09]} Rxd1 {[%clk 00:04:04]} {[%emt
00:01:39]} 21. Nxg7+ {[%clk 00:28:19]} {[%emt 00:01:13]} Kf8 {[%clk 00:03:41]}
{[%emt 00:00:53]} 22. Rxd1 {[%clk 00:28:35]} {[%emt 00:00:14]} Kxg7 {[%clk
00:03:38]} {[%emt 00:00:33]} 23. Qg4+ {[%clk 00:28:34]} {[%emt 00:00:29]} Kf8
{[%clk 00:03:44]} {[%emt 00:00:25]} 24. Bxf6 {[%clk 00:23:05]} {[%emt
00:06:00]} Bxg2+ {[%clk 00:04:07]} {[%emt 00:00:07]} 25. Bxg2 {[%clk 00:22:45]}
{[%emt 00:00:49]} Qxf6 {[%clk 00:04:33]} {[%emt 00:00:04]} 26. Bxb7 {[%clk
00:20:07]} {[%emt 00:03:09]} Rg8 {[%clk 00:04:02]} {[%emt 00:00:59]} 27. Qf3
{[%clk 00:17:06]} {[%emt 00:03:32]} Qxf3+ {[%clk 00:02:04]} {[%emt 00:02:28]}
28. Bxf3 {[%clk 00:16:21]} {[%emt 00:01:15]} Ke7 {[%clk 00:02:27]} {[%emt
00:00:07]} 29. Bd5 {[%clk 00:13:13]} {[%emt 00:03:39]} Rg7 {[%clk 00:02:18]}
{[%emt 00:00:36]} 30. b4 {[%clk 00:12:31]} {[%emt 00:01:14]} f6 {[%clk
00:00:35]} {[%emt 00:02:14]} 31. a4 {[%clk 00:12:36]} {[%emt 00:00:26]} Rg5
{[%clk 00:00:43]} {[%emt 00:00:20]} 32. Rf1 {[%clk 00:11:51]} {[%emt 00:01:14]}
Bd4 {[%clk 00:01:06]} {[%emt 00:00:06]} 33. Re1+ {[%clk 00:08:24]} {[%emt
00:03:58]} Kf8 {[%clk 00:00:34]} {[%emt 00:01:03]} 34. a5 {[%clk 00:03:49]}
{[%emt 00:05:05]} Kg7 {[%clk 00:00:35]} {[%emt 00:00:30]} 35. Bb7 {[%clk
00:03:14]} {[%emt 00:01:04]} Bc3 {[%clk 00:00:33]} {[%emt 00:00:32]} 36. Rb1
{[%clk 00:03:32]} {[%emt 00:00:11]} Be5 {[%clk 00:00:33]} {[%emt 00:00:34]} 37.
Bxa6 {[%clk 00:02:02]} {[%emt 00:01:56]} Rh5 {[%clk 00:01:00]} {[%emt
00:00:03]} 38. Bc8 {[%clk 00:01:28]} {[%emt 00:01:04]} Rxh2+ {[%clk 00:01:11]}
{[%emt 00:00:20]} 39. Kg1 {[%clk 00:01:57]} Ra2 {[%clk 00:00:45]} {[%emt
00:00:56]} 40. a6 {[%clk 00:02:11]} {[%emt 00:00:16]} Bd4+ {[%clk 00:00:40]}
{[%emt 00:00:39]} 41. Kh1 {[%clk 00:01:43]} {[%emt 00:01:03]} Rc2 {[%clk
00:01:25]} {[%emt 00:29:36]} 42. Be6 {[%clk 00:30:48]} {[%emt 00:01:24]} Ra2
{[%clk 00:01:51]} {[%emt 00:00:05]} 43. b5 {[%clk 00:30:54]} {[%emt 00:00:23]}
Bb6 {[%clk 00:01:42]} {[%emt 00:00:40]} 44. c5 {[%clk 00:29:22]} {[%emt
00:02:02]} 1-0

[Event "Swedish Chess Championship 2019: Veteran-SM 65+"]
[Site "Stiga Sports Arena, Arenatorget 1, Eskilstuna, Sweden"]
[Date "2019.07.07"]
[Round "2.4"]
[White "Gromark, Jonas"]
[Black "Eriksson, Mats"]
[Result "0-1"]
[TimeControl "90 minutes for 40 moves + 30 minutes for the rest of the game + 30 seconds per move from move one"]
[WhiteFideId "137122733"]
[BlackFideId "1700936"]
[WhiteElo "1833"]
[BlackElo "1961"]

1. e4 {[%clk 01:30:30]} {[%emt 07:03:29]} e5 {[%clk 01:30:47]} {[%emt
00:00:18]} 2. Nf3 {[%clk 01:30:52]} {[%emt 00:00:08]} Nc6 {[%clk 01:30:50]}
{[%emt 00:00:27]} 3. Bc4 {[%clk 01:31:03]} {[%emt 00:00:20]} Bc5 {[%clk
01:30:29]} {[%emt 00:00:50]} 4. c3 {[%clk 01:31:16]} {[%emt 00:00:17]} Nf6
{[%clk 01:30:22]} {[%emt 00:00:37]} 5. d3 {[%clk 01:31:25]} {[%emt 00:00:21]}
d6 {[%clk 01:26:38]} {[%emt 00:04:13]} 6. Bb3 {[%clk 01:29:54]} {[%emt
00:02:02]} O-O {[%clk 01:23:23]} {[%emt 00:03:44]} 7. Bg5 {[%clk 01:29:14]}
{[%emt 00:01:11]} Qe7 {[%clk 01:19:21]} {[%emt 00:04:31]} 8. Nbd2 {[%clk
01:27:34]} {[%emt 00:02:10]} a6 {[%clk 01:17:14]} {[%emt 00:02:37]} 9. h3
{[%clk 01:25:24]} {[%emt 00:02:40]} Be6 {[%clk 01:09:07]} {[%emt 00:08:37]} 10.
Bc2 {[%clk 01:24:35]} {[%emt 00:01:20]} Ba7 {[%clk 01:07:04]} {[%emt 00:02:32]}
11. Qe2 {[%clk 01:18:51]} {[%emt 00:06:14]} Rad8 {[%clk 01:04:42]} {[%emt
00:02:52]} 12. Nf1 {[%clk 01:17:02]} {[%emt 00:02:19]} d5 {[%clk 01:03:56]}
{[%emt 00:01:16]} 13. Ne3 {[%clk 01:11:06]} {[%emt 00:06:26]} dxe4 {[%clk
01:02:29]} {[%emt 00:01:56]} 14. dxe4 {[%clk 01:10:48]} {[%emt 00:00:47]} h6
{[%clk 01:01:26]} {[%emt 00:01:34]} 15. Bh4 {[%clk 01:09:01]} {[%emt 00:02:17]}
Rd6 {[%clk 00:54:11]} {[%emt 00:07:45]} 16. O-O {[%clk 00:54:45]} {[%emt
00:14:46]} g5 {[%clk 00:54:04]} {[%emt 00:00:36]} 17. Nxg5 {[%clk 00:48:51]}
{[%emt 00:06:24]} hxg5 {[%clk 00:47:12]} {[%emt 00:07:23]} 18. Bxg5 {[%clk
00:49:19]} {[%emt 00:00:02]} Kg7 {[%clk 00:42:38]} {[%emt 00:05:04]} 19. Qf3
{[%clk 00:42:56]} {[%emt 00:06:53]} Rg8 {[%clk 00:39:21]} {[%emt 00:03:46]} 20.
Bb3 {[%clk 00:39:30]} {[%emt 00:03:56]} Na5 {[%clk 00:30:47]} {[%emt 00:09:04]}
21. Bxe6 {[%clk 00:36:24]} {[%emt 00:03:35]} Bxe3 {[%clk 00:30:19]} {[%emt
00:00:58]} 22. fxe3 {[%clk 00:32:02]} {[%emt 00:04:52]} Qxe6 {[%clk 00:30:24]}
{[%emt 00:00:25]} 23. Rf2 {[%clk 00:28:54]} {[%emt 00:03:38]} Nh7 {[%clk
00:29:34]} {[%emt 00:01:20]} 24. Bh4 {[%clk 00:26:35]} {[%emt 00:02:49]} Nc4
{[%clk 00:29:28]} {[%emt 00:00:34]} 25. b3 {[%clk 00:20:28]} {[%emt 00:06:39]}
Nd2 {[%clk 00:24:54]} {[%emt 00:05:04]} 26. Qh5 {[%clk 00:19:08]} {[%emt
00:01:49]} Nxe4 {[%clk 00:24:38]} {[%emt 00:00:47]} 27. Rf5 {[%clk 00:17:33]}
{[%emt 00:02:05]} Qg6 {[%clk 00:22:59]} {[%emt 00:02:09]} 28. Qf3 {[%clk
00:16:26]} {[%emt 00:01:37]} Nhg5 {[%clk 00:21:20]} {[%emt 00:02:08]} 29. Bxg5
{[%clk 00:15:18]} {[%emt 00:01:38]} Nxg5 {[%clk 00:21:31]} {[%emt 00:00:19]} 30.
Qg4 {[%clk 00:14:57]} {[%emt 00:00:50]} Nh7 {[%clk 00:16:12]} {[%emt 00:05:48]}
31. Qf3 {[%clk 00:13:11]} {[%emt 00:02:18]} Rf6 {[%clk 00:16:09]} {[%emt
00:00:32]} 32. e4 {[%clk 00:13:20]} {[%emt 00:00:21]} Rxf5 {[%clk 00:15:43]}
{[%emt 00:00:55]} 33. exf5 {[%clk 00:13:49]} {[%emt 00:00:02]} Qg5 {[%clk
00:15:45]} {[%emt 00:00:28]} 34. Re1 {[%clk 00:13:22]} {[%emt 00:00:57]} Nf6
{[%clk 00:14:36]} {[%emt 00:01:39]} 35. Rxe5 {[%clk 00:11:34]} {[%emt
00:02:18]} Rd8 {[%clk 00:13:07]} {[%emt 00:01:58]} 36. Re3 {[%clk 00:07:05]}
{[%emt 00:04:59]} Rd1+ {[%clk 00:12:46]} {[%emt 00:00:52]} 37. Kh2 {[%clk
00:06:12]} {[%emt 00:01:23]} Rd2 {[%clk 00:12:43]} {[%emt 00:00:33]} 38. a4
{[%clk 00:04:18]} {[%emt 00:02:25]} Nd5 {[%clk 00:12:33]} {[%emt 00:00:39]} 39.
Re4 {[%clk 00:04:06]} {[%emt 00:00:42]} Kf8 {[%clk 00:09:41]} {[%emt 00:03:21]}
40. h4 {[%clk 00:01:13]} {[%emt 00:03:23]} Qh6 {[%clk 00:06:36]} {[%emt
00:03:35]} 41. Qg3 {[%clk 00:20:57]} {[%emt 00:10:46]} Nf6 {[%clk 00:30:41]}
{[%emt 00:06:25]} 42. Rc4 {[%clk 00:15:54]} {[%emt 00:05:33]} Nd5 {[%clk
00:30:27]} {[%emt 00:00:44]} 43. Re4 {[%clk 00:13:13]} {[%emt 00:03:11]} Qd6
{[%clk 00:30:38]} {[%emt 00:00:20]} 44. Qxd6+ {[%clk 00:12:05]} {[%emt
00:01:39]} cxd6 {[%clk 00:30:59]} {[%emt 00:00:09]} 45. c4 {[%clk 00:11:31]}
{[%emt 00:01:04]} Nf6 {[%clk 00:29:40]} {[%emt 00:01:48]} 46. Rf4 {[%clk
00:11:33]} {[%emt 00:00:28]} Ke7 {[%clk 00:29:02]} {[%emt 00:01:10]} 47. Rf3
{[%clk 00:11:47]} {[%emt 00:03:29]} Ng4+ {[%clk 00:30:37]} {[%emt 00:00:42]} 48.
Kh3 {[%clk 00:11:48]} {[%emt 00:00:29]} Ne5 {[%clk 00:30:50]} {[%emt 00:00:17]}
49. Re3 {[%clk 00:11:41]} {[%emt 00:00:37]} Kf6 {[%clk 00:30:11]} {[%emt
00:01:09]} 50. g4 {[%clk 00:11:05]} {[%emt 00:01:07]} Rd3 {[%clk 00:30:07]}
{[%emt 00:00:33]} 51. Rg3 {[%clk 00:10:46]} {[%emt 00:00:50]} Rxg3+ {[%clk
00:29:08]} {[%emt 00:01:29]} 52. Kxg3 {[%clk 00:11:08]} {[%emt 00:00:08]} Nd3
{[%clk 00:29:19]} {[%emt 00:00:18]} 53. a5 {[%clk 00:10:14]} {[%emt 00:01:25]}
Nb4 {[%clk 00:28:19]} {[%emt 00:01:30]} 54. Kf4 {[%clk 00:10:17]} {[%emt
00:00:27]} Nc6 {[%clk 00:28:17]} {[%emt 00:00:32]} 55. g5+ {[%clk 00:10:05]}
{[%emt 00:00:41]} Kg7 {[%clk 00:21:21]} {[%emt 00:07:26]} 56. Ke4 {[%clk
00:09:08]} {[%emt 00:01:27]} Nxa5 {[%clk 00:21:35]} {[%emt 00:00:17]} 57. Kd5
{[%clk 00:06:24]} {[%emt 00:03:14]} Nxb3 {[%clk 00:21:47]} {[%emt 00:00:18]} 58.
Kxd6 {[%clk 00:06:10]} {[%emt 00:00:43]} a5 {[%clk 00:22:04]} {[%emt 00:00:13]}
59. Ke7 {[%clk 00:06:06]} {[%emt 00:00:34]} Nd4 {[%clk 00:22:05]} {[%emt
00:00:29]} 60. f6 {[%clk 00:05:55]} {[%emt 00:00:42]} Kg8 {[%clk 00:22:05]}
{[%emt 00:00:29]} 61. g6 {[%clk 00:05:20]} {[%emt 00:01:05]} Nf5+ {[%clk
00:22:21]} {[%emt 00:00:14]} 62. Ke8 {[%clk 00:05:32]} {[%emt 00:00:18]} Nh6
{[%clk 00:21:51]} {[%emt 00:01:00]} 0-1

[Event "Swedish Chess Championship 2019: Veteran-SM 65+"]
[Site "Stiga Sports Arena, Arenatorget 1, Eskilstuna, Sweden"]
[Date "2019.07.07"]
[Round "2.5"]
[White "Amnell, Mats"]
[Black "Adolfsson, Kjell"]
[Result "0-1"]
[TimeControl "90 minutes for 40 moves + 30 minutes for the rest of the game + 30 seconds per move from move one"]
[WhiteFideId "1717316"]
[BlackFideId "1714961"]
[WhiteElo "1770"]
[BlackElo "1895"]

1. e4 {[%clk 01:28:35]} {[%emt 00:02:23]} e6 {[%clk 01:29:41]} {[%emt
00:01:19]} 2. d4 {[%clk 01:28:35]} {[%emt 00:00:30]} Nf6 {[%clk 01:28:58]}
{[%emt 00:01:13]} 3. Nd2 {[%clk 01:26:56]} {[%emt 00:02:09]} d5 {[%clk
01:29:12]} {[%emt 00:00:17]} 4. Bd3 {[%clk 01:25:22]} {[%emt 00:02:03]} c5
{[%clk 01:28:40]} {[%emt 00:01:02]} 5. c3 {[%clk 01:25:11]} {[%emt 00:00:41]}
Nc6 {[%clk 01:28:19]} {[%emt 00:00:50]} 6. Ngf3 {[%clk 01:24:45]} {[%emt
00:00:56]} c4 {[%clk 01:24:47]} {[%emt 00:04:03]} 7. Bc2 {[%clk 01:24:36]}
{[%emt 00:00:39]} Be7 {[%clk 01:22:51]} {[%emt 00:02:25]} 8. O-O {[%clk
01:23:35]} {[%emt 00:01:31]} h6 {[%clk 01:22:18]} {[%emt 00:01:04]} 9. Re1
{[%clk 01:19:41]} {[%emt 00:04:24]} b5 {[%clk 01:18:47]} {[%emt 00:04:01]} 10.
e5 {[%clk 01:15:28]} {[%emt 00:04:43]} Nd7 {[%clk 01:18:59]} {[%emt 00:00:17]}
11. h3 {[%clk 01:12:56]} {[%emt 00:03:02]} Qb6 {[%clk 01:13:37]} {[%emt
00:05:53]} 12. Nh2 {[%clk 01:09:39]} {[%emt 00:03:47]} Bb7 {[%clk 01:11:39]}
{[%emt 00:02:28]} 13. Qg4 {[%clk 01:00:34]} {[%emt 00:09:36]} g5 {[%clk
01:06:51]} {[%emt 00:05:18]} 14. Qh5 {[%clk 00:59:04]} {[%emt 00:02:00]} Rf8
{[%clk 00:52:38]} {[%emt 00:14:42]} 15. Qxh6 {[%clk 00:52:32]} {[%emt
00:07:02]} O-O-O {[%clk 00:52:46]} {[%emt 00:00:22]} 16. Qh5 {[%clk 00:46:32]}
{[%emt 00:06:30]} f5 {[%clk 00:40:17]} {[%emt 00:12:58]} 17. exf6 {[%clk
00:40:23]} {[%emt 00:06:40]} Nxf6 {[%clk 00:31:48]} {[%emt 00:09:00]} 18. Qe2
{[%clk 00:39:19]} {[%emt 00:01:33]} e5 {[%clk 00:23:41]} {[%emt 00:08:37]} 19.
dxe5 {[%clk 00:32:02]} {[%emt 00:07:47]} Nd7 {[%clk 00:19:41]} {[%emt
00:04:29]} 20. Ndf3 {[%clk 00:29:50]} {[%emt 00:02:43]} d4 {[%clk 00:17:23]}
{[%emt 00:02:48]} 21. cxd4 {[%clk 00:27:14]} {[%emt 00:03:06]} Nxd4 {[%clk
00:17:45]} {[%emt 00:00:08]} 22. Nxd4 {[%clk 00:24:18]} {[%emt 00:03:25]} Qxd4
{[%clk 00:18:12]} {[%emt 00:00:05]} 23. Ng4 {[%clk 00:17:50]} {[%emt 00:06:58]}
Nc5 {[%clk 00:14:06]} {[%emt 00:04:36]} 24. Rd1 {[%clk 00:14:39]} {[%emt
00:03:40]} Nd3 {[%clk 00:14:23]} {[%emt 00:00:14]} 25. Be3 {[%clk 00:08:11]}
{[%emt 00:06:57]} Qd5 {[%clk 00:14:45]} {[%emt 00:00:09]} 26. f3 {[%clk
00:06:37]} {[%emt 00:02:04]} Bc5 {[%clk 00:10:44]} {[%emt 00:04:30]} 27. Bxd3
{[%clk 00:03:36]} {[%emt 00:03:31]} cxd3 {[%clk 00:11:07]} {[%emt 00:00:07]} 28.
Qd2 {[%clk 00:02:37]} {[%emt 00:01:30]} Kb8 {[%clk 00:11:13]} {[%emt 00:00:24]}
29. a3 {[%clk 00:02:07]} {[%emt 00:00:59]} Rxf3 {[%clk 00:09:04]} {[%emt
00:02:40]} 30. Bxc5 {[%clk 00:00:41]} {[%emt 00:01:56]} Qxc5+ {[%clk 00:09:17]}
{[%emt 00:00:17]} 31. Kh2 {[%clk 00:00:34]} {[%emt 00:00:36]} Rf4 {[%clk
00:08:08]} {[%emt 00:01:39]} 32. Rac1 {[%clk 00:00:45]} {[%emt 00:00:19]} Qd4
{[%clk 00:08:15]} {[%emt 00:00:23]} 33. Rc3 {[%clk 00:00:31]} {[%emt 00:00:44]}
Rxg4 {[%clk 00:06:08]} {[%emt 00:02:36]} 34. hxg4 {[%clk 00:00:37]} {[%emt
00:00:25]} Rh8+ {[%clk 00:06:29]} {[%emt 00:00:10]} 35. Kg3 {[%clk 00:01:00]}
{[%emt 00:00:05]} Qxe5+ {[%clk 00:06:00]} {[%emt 00:01:02]} 36. Kf2 {[%clk
00:01:17]} {[%emt 00:00:10]} Rf8+ {[%clk 00:05:57]} {[%emt 00:00:34]} 37. Kg1
{[%clk 00:01:17]} {[%emt 00:00:30]} Qd4+ {[%clk 00:05:04]} {[%emt 00:01:24]} 38.
Kh2 {[%clk 00:01:31]} {[%emt 00:00:15]} Rf2 {[%clk 00:03:44]} {[%emt 00:01:50]}
39. Rxd3 {[%clk 00:00:48]} {[%emt 00:01:14]} Qh8+ {[%clk 00:02:02]} {[%emt
00:02:11]} 40. Rh3 {[%clk 00:00:48]} {[%emt 00:00:30]} Qe5+ {[%clk 00:02:26]}
{[%emt 00:00:07]} 41. Rg3 {[%clk 00:29:17]} {[%emt 00:02:39]} Rxg2+ {[%clk
00:22:31]} {[%emt 00:09:46]} 42. Qxg2 {[%clk 00:29:06]} {[%emt 00:00:40]} Bxg2
{[%clk 00:22:59]} {[%emt 00:00:03]} 43. Kxg2 {[%clk 00:22:26]} {[%emt
00:04:32]} Qe2+ {[%clk 00:23:12]} {[%emt 00:02:54]} 44. Kh3 {[%clk 00:22:27]}
{[%emt 00:00:29]} Qxd1 {[%clk 00:23:33]} {[%emt 00:00:10]} 45. Rg2 {[%clk
00:21:49]} {[%emt 00:01:08]} a5 {[%clk 00:22:09]} {[%emt 00:01:54]} 0-1